bitfinex-derivatives/quotes_BTCF0:USTF0_20260207
["timestamp","ask_amount","ask_price","bid_price","bid_amount"]
[1770479219119,0.5782656,69447.0,69413.0,0.28343432]
[1770479219414,0.5782656,69443.0,69413.0,0.28343432]
[1770479219824,0.5782656,69442.0,69413.0,0.28343432]
[1770479220011,0.5782656,69442.0,69411.0,0.01442]
[1770479220725,0.5782656,69442.0,69413.0,0.28690675]
[1770479221018,1.01000458,69442.0,69413.0,0.28690675]
[1770479221221,0.5782656,69441.0,69413.0,0.28690675]
[1770479221412,0.5782656,69440.0,69413.0,0.28690675]
[1770479222209,0.5782656,69440.0,69414.0,0.01442]
[1770479222411,0.5782656,69440.0,69423.0,0.014418]
[1770479223021,0.5782656,69440.0,69425.0,0.014418]
[1770479223413,0.5782656,69440.0,69418.0,0.11227748]
[1770479224024,0.5782656,69440.0,69425.0,0.014418]
[1770479224521,0.5782656,69440.0,69422.0,0.014418]
[1770479225622,0.5782656,69440.0,69426.0,0.014417]
[1770479229118,0.5782656,69440.0,69419.0,0.014419]
[1770479229316,0.5782656,69440.0,69417.0,0.014419]
[1770479229510,0.5782656,69440.0,69419.0,0.014419]
[1770479229710,0.5782656,69440.0,69414.0,0.10020398]
[1770479229918,0.5782656,69440.0,69424.0,0.014418]
[1770479230521,0.5782656,69440.0,69421.0,0.014418]
[1770479232420,0.5782656,69440.0,69418.0,0.014419]
[1770479232723,0.5782656,69440.0,69414.0,0.10020398]
[1770479232724,0.5782656,69440.0,69414.0,0.01442]
[1770479232926,0.5782656,69440.0,69413.0,0.30132675]
[1770479233118,0.5782656,69440.0,69415.0,0.01442]
[1770479233319,0.5782656,69440.0,69419.0,0.014419]
[1770479233623,0.5782656,69440.0,69416.0,0.014419]
[1770479233825,0.5782656,69440.0,69418.0,0.014419]
[1770479234021,0.5782656,69440.0,69420.0,0.014419]
[1770479234423,0.5782656,69440.0,69417.0,0.014419]
[1770479235319,0.5782656,69440.0,69419.0,0.014419]
[1770479238319,0.5782656,69440.0,69416.0,0.014419]
[1770479238625,0.5782656,69440.0,69418.0,0.014419]
[1770479238827,0.5782656,69440.0,69413.0,0.38971582]
[1770479239027,0.5782656,69440.0,69419.0,0.014419]
[1770479239624,0.57799512,69447.0,69425.0,0.014417]
[1770479239822,0.57799512,69447.0,69424.0,0.014418]
[1770479240528,0.57799512,69447.0,69417.0,0.014419]
[1770479240922,0.57799512,69447.0,69423.0,0.014418]
[1770479241235,0.57799512,69447.0,69420.0,0.014419]
[1770479241429,0.57799512,69447.0,69423.0,0.014418]
[1770479241623,0.57799512,69447.0,69432.0,0.014416]
[1770479241827,0.57799512,69447.0,69427.0,0.014417]
[1770479243232,0.57799512,69454.0,69439.0,0.014415]
[1770479243731,0.57799512,69454.0,69433.0,0.11634595]
[1770479244121,0.57799512,69454.0,69435.0,0.014415]
[1770479245022,0.57799512,69454.0,69437.0,0.014415]
[1770479245223,0.57799512,69454.0,69439.0,0.014415]
[1770479245423,0.57799512,69454.0,69441.0,0.014414]
[1770479245826,0.57799512,69454.0,69433.0,0.10192995]
[1770479246227,0.57799512,69454.0,69436.0,0.11768126]
[1770479246435,0.57799512,69467.0,69445.0,0.014413]
[1770479247129,0.43173898,69471.0,69451.0,0.14098525]
[1770479247334,0.57799512,69475.0,69455.0,0.014411]
[1770479247526,0.0002,69466.0,69455.0,0.014411]
[1770479247726,0.57799512,69475.0,69457.0,0.014411]
[1770479248631,0.57189921,69497.0,69459.0,0.14088434]
[1770479248632,0.57799512,69482.0,69459.0,0.14088434]
[1770479248833,0.57799512,69482.0,69470.0,0.014408]
[1770479249038,0.0002,69480.0,69467.0,0.014409]
[1770479249633,0.57819512,69480.0,69450.0,0.15529334]
[1770479249835,0.57799512,69480.0,69450.0,0.15529334]
[1770479250034,0.57799512,69480.0,69457.0,0.014411]
[1770479250227,0.57799512,69480.0,69457.0,0.17054607]
[1770479250427,0.57799512,69480.0,69467.0,0.014409]
[1770479250630,0.57819512,69487.0,69462.0,0.17054607]
[1770479250824,0.57819512,69487.0,69468.0,0.014409]
[1770479251030,0.0002,69478.0,69465.0,0.014409]
[1770479251230,0.57799512,69487.0,69465.0,0.014409]
[1770479251532,0.57799512,69487.0,69468.0,0.014409]
[1770479252537,0.57799512,69487.0,69470.0,0.014408]
[1770479252732,0.27871421,69487.0,69479.0,0.29436649]
[1770479252928,0.27871421,69487.0,69465.0,0.17054607]
[1770479253233,0.27871421,69487.0,69463.0,0.01441]
[1770479253436,0.27871421,69487.0,69465.0,0.014409]
[1770479254232,0.27871421,69487.0,69473.0,0.29159807]
[1770479254826,0.57799512,69510.0,69473.0,0.29159807]
[1770479255032,0.57799512,69510.0,69474.0,0.56075532]
[1770479255330,0.57799512,69510.0,69473.0,0.29159807]
[1770479255331,0.57799512,69510.0,69477.0,0.54634832]
[1770479256241,0.57799512,69510.0,69485.0,0.014405]
[1770479256631,0.57799512,69510.0,69485.0,0.5891688]
[1770479257033,0.57799512,69510.0,69485.0,0.014405]
[1770479257429,0.57799512,69510.0,69481.0,0.014406]
[1770479257630,0.57799512,69510.0,69483.0,0.5891688]
[1770479258941,0.0002,69501.0,69483.0,0.5747638]
[1770479259142,0.0002,69501.0,69493.0,0.014403]
[1770479259337,0.0002,69501.0,69490.0,0.5747638]
[1770479259734,0.57799512,69510.0,69493.0,0.014403]
[1770479259932,0.00033897,69509.0,69493.0,0.014403]
[1770479260236,0.54923602,69526.0,69494.0,0.5747638]
[1770479260436,0.54923602,69526.0,69496.0,0.5747638]
[1770479260633,0.54923602,69526.0,69496.0,0.5891668]
[1770479261528,0.54923602,69526.0,69487.0,0.014405]
[1770479261935,0.54923602,69526.0,69483.0,0.5901688]
[1770479262136,0.54923602,69526.0,69483.0,0.5747638]
[1770479262336,0.54923602,69526.0,69493.0,0.5747638]
[1770479262537,0.54923602,69526.0,69504.0,0.014401]
[1770479263033,0.54923602,69526.0,69501.0,0.014402]
[1770479263238,0.54923602,69526.0,69495.0,0.5747638]
[1770479263534,0.54923602,69526.0,69502.0,0.014402]
[1770479263747,0.54923602,69526.0,69507.0,0.014401]
[1770479264044,0.54923602,69526.0,69502.0,0.5747638]
[1770479264231,0.54923602,69526.0,69503.0,0.014401]
[1770479264429,0.54923602,69526.0,69502.0,0.5747638]
[1770479264634,0.54923602,69526.0,69505.0,0.014401]
[1770479265234,0.54923602,69526.0,69502.0,0.5747638]
[1770479265546,0.54923602,69540.0,69514.0,0.014399]
[1770479265743,0.54923602,69540.0,69511.0,0.5747638]
[1770479265938,0.54923602,69540.0,69511.0,0.5891638]
[1770479266139,0.54923602,69540.0,69513.0,0.014399]
[1770479266442,0.54923602,69540.0,69514.0,0.5747638]
[1770479266742,0.54923602,69540.0,69515.0,0.014399]
[1770479268329,0.54923602,69540.0,69511.0,0.001]
[1770479268532,0.54923602,69540.0,69500.0,0.5747638]
[1770479269343,0.54923602,69540.0,69513.0,0.014399]
[1770479269534,0.54923602,69540.0,69514.0,0.5747638]
[1770479270540,0.54923602,69540.0,69512.0,0.014399]
[1770479271443,0.54923602,69540.0,69506.0,0.5747638]
[1770479271747,0.54923602,69540.0,69513.0,0.014399]
[1770479272245,0.54923602,69540.0,69496.0,0.014403]
[1770479272246,0.54923602,69540.0,69515.0,0.014399]
[1770479275049,0.54923602,69540.0,69514.0,0.014399]
[1770479275350,0.54923602,69540.0,69519.0,0.014398]
[1770479275646,0.54923602,69540.0,69518.0,0.014398]
[1770479275946,0.54923602,69540.0,69520.0,0.014398]
[1770479276744,0.54923602,69540.0,69524.0,0.014397]
[1770479277046,0.54923602,69540.0,69518.0,0.5747638]
[1770479277443,0.54923602,69540.0,69526.0,0.014397]
[1770479278757,0.54923602,69540.0,69528.0,0.28278931]
[1770479280449,0.54923602,69540.0,69515.0,0.014399]
[1770479281337,0.54923602,69540.0,69514.0,0.29416071]
[1770479282142,0.54923602,69540.0,69517.0,0.014398]
[1770479282336,0.54923602,69540.0,69514.0,0.29416071]
[1770479283844,0.69430564,69540.0,69493.0,0.5747638]
[1770479284044,0.54923602,69539.0,69493.0,0.5747638]
[1770479284250,0.54923602,69539.0,69494.0,0.014403]
[1770479284440,0.54923602,69539.0,69495.0,0.28565922]
[1770479284643,0.54923602,69539.0,69488.0,0.014404]
[1770479285448,0.54923602,69533.0,69484.0,0.30005184]
[1770479285648,0.54923602,69533.0,69486.0,0.014405]
[1770479286253,0.54923602,69533.0,69484.0,0.28564684]
[1770479286445,0.54923602,69533.0,69482.0,0.014406]
[1770479287450,0.54923602,69533.0,69479.0,0.014406]
[1770479287451,0.53849127,69519.0,69479.0,0.014406]
[1770479287643,0.53849127,69519.0,69481.0,0.01454434]
[1770479287837,0.53849127,69499.0,69464.0,0.55999761]
[1770479288043,0.53849127,69499.0,69463.0,0.29305154]
[1770479288244,0.53849127,69499.0,69450.0,0.55999761]
[1770479288844,0.14506962,69500.0,69450.0,0.55999761]
[1770479288845,0.53849127,69497.0,69450.0,0.55999761]
[1770479289151,0.14506962,69500.0,69451.0,0.014412]
[1770479289152,0.53849127,69495.0,69451.0,0.014412]
[1770479289341,0.53849127,69495.0,69446.0,0.014413]
[1770479289546,0.53849127,69493.0,69446.0,0.014413]
[1770479289747,0.53849127,69491.0,69441.0,0.57441161]
[1770479289947,0.71656601,69516.0,69427.0,0.55999761]
[1770479289948,0.53849127,69479.0,69427.0,0.55999761]
[1770479290144,0.53849127,69477.0,69427.0,0.55999761]
[1770479290342,0.53849127,69475.0,69434.0,0.014416]
[1770479290543,0.54572267,69473.0,69434.0,0.014416]
[1770479290745,0.54572267,69471.0,69434.0,0.014416]
[1770479290953,0.54572267,69469.0,69434.0,0.014416]
[1770479291151,0.54572267,69467.0,69437.0,0.014415]
[1770479291451,0.54572267,69465.0,69437.0,0.014415]
[1770479291842,0.54572267,69463.0,69437.0,0.014415]
[1770479292054,0.54572267,69461.0,69437.0,0.014415]
[1770479292250,0.54572267,69459.0,69437.0,0.014415]
[1770479292546,0.54572267,69457.0,69433.0,0.014416]
[1770479292748,0.54572267,69455.0,69429.0,0.014417]
[1770479293653,0.54572267,69455.0,69437.0,0.001]
[1770479295251,0.54572267,69455.0,69430.0,0.5443028]
[1770479295553,0.54572267,69455.0,69429.0,0.014417]
[1770479295554,0.54572267,69455.0,69431.0,0.5587188]
[1770479295757,0.00013834,69456.0,69435.0,0.5443028]
[1770479295950,0.00013834,69456.0,69438.0,0.5443028]
[1770479297351,0.00013834,69456.0,69442.0,0.014414]
[1770479297560,0.00013834,69456.0,69442.0,0.5587168]
[1770479298448,0.14506962,69500.0,69452.0,0.5443028]
[1770479298449,0.54572267,69477.0,69452.0,0.5443028]
[1770479298651,0.54572267,69477.0,69455.0,0.5443028]
[1770479299953,0.54572267,69477.0,69446.0,0.014413]
[1770479300150,0.54572267,69477.0,69448.0,0.014413]
[1770479300748,0.54572267,69477.0,69453.0,0.014412]
[1770479301255,0.54572267,69477.0,69450.0,0.014412]
[1770479301452,0.54572267,69487.0,69455.0,0.5443028]
[1770479301654,0.54572267,69487.0,69442.0,0.072072]
[1770479301655,0.54572267,69487.0,69462.0,0.5443028]
[1770479302050,0.54572267,69487.0,69465.0,0.5443028]
[1770479302956,0.54572267,69519.0,69470.0,0.5587108]
[1770479303360,0.54572267,69519.0,69458.0,0.014411]
[1770479303361,0.54572267,69519.0,69467.0,0.014409]
[1770479303560,0.54572267,69519.0,69466.0,0.014409]
[1770479304259,0.54592267,69519.0,69466.0,0.014409]
[1770479304557,0.54592267,69519.0,69454.0,0.014412]
[1770479304860,0.54572267,69499.0,69454.0,0.014412]
[1770479305351,0.54572267,69499.0,69457.0,0.014411]
[1770479305660,0.54572267,69499.0,69461.0,0.01441]
[1770479305861,0.54572267,69499.0,69455.0,0.5443028]
[1770479306152,0.54572267,69499.0,69439.0,0.014415]
[1770479306153,0.54572267,69499.0,69451.0,0.5443028]
[1770479306358,0.54572267,69499.0,69452.0,0.014412]
[1770479306545,0.54572267,69499.0,69451.0,0.5443028]
[1770479307152,0.54572267,69499.0,69449.0,0.014413]
[1770479308057,0.54572267,69499.0,69445.0,0.014413]
[1770479308263,0.54572267,69479.0,69434.0,0.5443028]
[1770479308456,0.54572267,69479.0,69427.0,0.28183331]
[1770479308457,0.54572267,69479.0,69419.0,0.014419]
[1770479308655,0.54572267,69479.0,69417.0,0.5443028]
[1770479308849,0.54572267,69459.0,69417.0,0.5443028]
[1770479309360,0.54572267,69459.0,69415.0,0.28203773]
[1770479309563,0.54572267,69459.0,69416.0,0.5443028]
[1770479309955,0.54572267,69459.0,69413.0,0.00013234]
[1770479311856,0.54572267,69459.0,69400.0,0.014423]
[1770479312056,0.54572267,69457.0,69400.0,0.014423]
[1770479312461,0.54572267,69439.0,69398.0,0.28868259]
[1770479312658,0.54572267,69439.0,69390.0,0.5443028]
[1770479312659,0.54572267,69439.0,69391.0,0.014425]
[1770479312865,0.54572267,69437.0,69391.0,0.014425]
[1770479313058,0.54572267,69435.0,69391.0,0.5587278]
[1770479313260,0.54572267,69433.0,69394.0,0.014424]
[1770479313460,0.54572267,69431.0,69394.0,0.014424]
[1770479313662,0.54572267,69429.0,69394.0,0.014424]
[1770479313862,0.54572267,69427.0,69399.0,0.28423706]
[1770479314159,0.54572267,69425.0,69399.0,0.28423706]
[1770479314361,0.54572267,69423.0,69399.0,0.28423706]
[1770479314561,0.54572267,69421.0,69394.0,0.014424]
[1770479314859,0.54572267,69419.0,69391.0,0.5443028]
[1770479315065,0.54572267,69417.0,69386.0,0.014426]
[1770479315264,0.00013234,69416.0,69386.0,0.014426]
[1770479315462,0.54572267,69415.0,69386.0,0.014426]
[1770479315858,0.54572267,69413.0,69389.0,0.54373798]
[1770479316059,0.54572267,69413.0,69394.0,0.014424]
[1770479316255,0.54572267,69413.0,69389.0,0.52931298]
[1770479316256,0.00011636,69412.0,69390.0,0.014425]
[1770479317260,0.58216276,69412.0,69390.0,0.014425]
[1770479317660,0.58216276,69412.0,69394.0,0.001]
[1770479318562,0.58216276,69412.0,69390.0,0.015425]
[1770479319163,0.58216276,69412.0,69390.0,0.014425]
[1770479319364,0.58216276,69412.0,69390.0,0.54373798]
[1770479320562,0.58216276,69412.0,69393.0,0.014424]
[1770479320968,0.57189921,69453.0,69380.0,0.014427]
[1770479320969,0.5820464,69410.0,69380.0,0.014427]
[1770479321161,0.14506962,69420.0,69380.0,0.014427]
[1770479321162,0.5820464,69408.0,69380.0,0.014427]
[1770479321462,0.5820464,69408.0,69383.0,0.54373898]
[1770479321668,0.00013105,69407.0,69383.0,0.54373898]
[1770479321965,0.00013234,69406.0,69391.0,0.52931298]
[1770479322166,0.00013234,69406.0,69394.0,0.014424]
[1770479322665,0.00013234,69406.0,69389.0,0.54373798]
[1770479323364,0.00013234,69406.0,69391.0,0.014425]
[1770479323777,0.00013234,69406.0,69380.0,0.28970981]
[1770479323778,0.5820464,69439.0,69399.0,0.52931298]
[1770479324072,0.5820464,69439.0,69403.0,0.014422]
[1770479324273,0.5820464,69439.0,69403.0,0.54373498]
[1770479324863,0.5820464,69439.0,69403.0,0.52931298]
[1770479325062,0.5820464,69439.0,69400.0,0.014423]
[1770479325571,0.5820464,69439.0,69403.0,0.54373498]
[1770479325769,0.5820464,69439.0,69403.0,0.014422]
[1770479325977,0.5820464,69439.0,69399.0,0.014423]
[1770479326269,0.5820464,69439.0,69396.0,0.014424]
[1770479326467,0.5820464,69439.0,69395.0,0.014424]
[1770479329967,0.5820464,69439.0,69398.0,0.014423]
[1770479330171,0.5820464,69439.0,69403.0,0.52931298]
[1770479330670,0.5820464,69439.0,69407.0,0.54373398]
[1770479331572,0.5820464,69439.0,69407.0,0.52931298]
[1770479331773,0.5820464,69439.0,69401.0,0.54373598]
[1770479331977,0.5820464,69439.0,69403.0,0.014422]
[1770479332778,0.5820464,69439.0,69405.0,0.52931298]
[1770479333080,0.5820464,69439.0,69411.0,0.52931298]
[1770479333271,0.45405278,69458.0,69399.0,0.014423]
[1770479333272,0.5820464,69448.0,69415.0,0.52931298]
[1770479333475,0.5820464,69457.0,69431.0,0.52931298]
[1770479333676,0.5820464,69457.0,69432.0,0.014416]
[1770479333976,0.5820464,69457.0,69432.0,0.54372898]
[1770479334574,0.5820464,69457.0,69435.0,0.54372898]
[1770479335372,0.5820464,69476.0,69445.0,0.29119656]
[1770479335572,0.5820464,69476.0,69445.0,0.82050954]
[1770479335775,0.5820464,69476.0,69446.0,0.44372598]
[1770479336378,0.5820464,69476.0,69446.0,0.45813898]
[1770479336873,0.5820464,69476.0,69422.0,0.52931298]
[1770479337078,0.5820464,69476.0,69424.0,0.52931298]
[1770479337474,0.5820464,69459.0,69412.0,0.52931298]
[1770479338381,0.5820464,69459.0,69408.0,0.28526754]
[1770479338582,0.5820464,69459.0,69405.0,0.00014896]
[1770479338882,0.5820464,69459.0,69406.0,0.014422]
[1770479339282,0.5820464,69459.0,69422.0,0.001]
[1770479339483,0.5820464,69459.0,69406.0,0.52931298]
[1770479340071,0.5820464,69458.0,69406.0,0.52931298]
[1770479340479,0.5820464,69454.0,69406.0,0.52931298]
[1770479341186,1.00962911,69454.0,69405.0,0.00014896]
[1770479341390,0.5820464,69453.0,69405.0,0.00014896]
[1770479341587,0.5820464,69449.0,69405.0,0.00014896]
[1770479342485,0.5820464,69449.0,69405.0,0.52946194]
[1770479342682,0.5820464,69449.0,69409.0,0.52931298]
[1770479343181,0.5820464,69449.0,69414.0,0.52931298]
[1770479343382,0.5830464,69449.0,69417.0,0.52931298]
[1770479345084,0.5830464,69449.0,69406.0,0.52931298]
[1770479345289,0.5820464,69449.0,69408.0,0.54373398]
[1770479345889,0.5820464,69449.0,69411.0,0.54687532]
[1770479347081,0.5765424,69448.0,69411.0,0.54687532]
[1770479347487,1.00412511,69448.0,69411.0,0.54687532]
[1770479347695,0.5765424,69447.0,69411.0,0.54687532]
[1770479347883,1.00412511,69447.0,69411.0,0.54687532]
[1770479348087,0.5765424,69446.0,69411.0,0.54687532]
[1770479350497,0.55353668,69445.0,69405.0,0.00014896]
[1770479350686,0.55353668,69438.0,69405.0,0.00014896]
[1770479351091,0.55353668,69438.0,69405.0,0.54254289]
[1770479351492,0.98111939,69438.0,69405.0,0.54254289]
[1770479351688,0.55353668,69437.0,69405.0,0.54254289]
[1770479353497,0.55353668,69436.0,69405.0,0.54254289]
[1770479355304,0.71656601,69455.0,69405.0,0.54254289]
[1770479355305,0.55353668,69434.0,69405.0,0.54254289]
[1770479355999,0.55353668,69434.0,69408.0,0.54239393]
[1770479357099,0.55353668,69434.0,69410.0,0.54239393]
[1770479361803,0.55353668,69434.0,69410.0,0.55681493]
[1770479362004,0.55353668,69434.0,69410.0,0.54239393]
[1770479362800,0.55453668,69434.0,69410.0,0.54239393]
[1770479363297,0.001,69434.0,69413.0,0.54239393]
[1770479363496,0.55353668,69441.0,69413.0,0.54239393]
[1770479363705,0.55353668,69441.0,69415.0,0.54239393]
[1770479364001,0.55353668,69449.0,69422.0,0.54239393]
[1770479364596,0.55353668,69449.0,69422.0,0.44239393]
[1770479365004,0.55353668,69449.0,69422.0,0.34269393]
[1770479365201,0.55353668,69449.0,69413.0,0.54239393]
[1770479365607,0.42758271,69447.0,69413.0,0.54239393]
[1770479365807,0.55353668,69446.0,69413.0,0.54239393]
[1770479366108,0.42758271,69444.0,69413.0,0.54239393]
[1770479366403,0.42758271,69441.0,69413.0,0.54239393]
[1770479366594,0.55353668,69440.0,69413.0,0.54239393]
[1770479367605,0.98111939,69440.0,69413.0,0.54239393]
[1770479367801,0.55353668,69439.0,69413.0,0.54239393]
[1770479368003,0.55353668,69439.0,69406.0,0.54239393]
[1770479368905,0.55353668,69439.0,69405.0,0.00014896]
[1770479369609,0.55353668,69439.0,69405.0,0.54254289]
[1770479369799,0.55353668,69439.0,69407.0,0.54239393]
[1770479370708,0.55353668,69439.0,69405.0,0.00014896]
[1770479370904,0.55353668,69434.0,69405.0,0.00014896]
[1770479372114,0.42758271,69433.0,69405.0,0.00014896]
[1770479372305,0.55353668,69432.0,69385.0,0.54239393]
[1770479372508,0.55353668,69420.0,69385.0,0.54239393]
[1770479373017,0.55353668,69419.0,69385.0,0.54239393]
[1770479373312,0.55353668,69417.0,69385.0,0.54239393]
[1770479373512,0.55353668,69415.0,69385.0,0.54239393]
[1770479373714,0.55353668,69413.0,69385.0,0.54239393]
[1770479374009,0.55353668,69411.0,69385.0,0.54239393]
[1770479374407,0.55353668,69409.0,69385.0,0.54239393]
[1770479374913,0.55353668,69407.0,69385.0,0.54239393]
[1770479376307,0.55978029,69406.0,69385.0,0.54239393]
[1770479377714,0.00012794,69405.0,69385.0,0.54239393]
[1770479378015,0.55978029,69406.0,69385.0,0.54239393]
[1770479378408,0.55978029,69405.0,69385.0,0.54239393]
[1770479379319,0.55978029,69413.0,69385.0,0.54239393]
[1770479379506,0.00014896,69404.0,69389.0,0.014425]
[1770479379711,0.55978029,69420.0,69392.0,0.56669603]
[1770479380720,0.55978029,69420.0,69392.0,0.58112003]
[1770479381521,0.55978029,69420.0,69392.0,0.56669603]
[1770479383320,0.55978029,69418.0,69392.0,0.56669603]
[1770479387315,0.55978029,69418.0,69383.0,0.56669603]
[1770479387521,0.56078029,69418.0,69387.0,0.56669603]
[1770479387717,0.42758271,69416.0,69387.0,0.56669603]
[1770479387913,0.55978029,69415.0,69387.0,0.56669603]
[1770479388117,0.55978029,69415.0,69391.0,0.56669603]
[1770479390019,0.42758271,69419.0,69394.0,0.56669603]
[1770479390323,0.55978029,69422.0,69395.0,0.014424]
[1770479390324,0.987363,69422.0,69395.0,0.014424]
[1770479390515,0.987363,69422.0,69396.0,0.56669603]
[1770479390715,0.55978029,69422.0,69398.0,0.56669603]
[1770479394825,0.55978029,69420.0,69398.0,0.56669603]
[1770479395526,0.55978029,69419.0,69398.0,0.56669603]
[1770479395822,0.55978029,69418.0,69398.0,0.56669603]
[1770479396615,0.55978029,69417.0,69398.0,0.56669603]
[1770479397416,0.987363,69417.0,69398.0,0.56669603]
[1770479398116,0.55978029,69416.0,69398.0,0.56669603]
[1770479398317,0.987363,69416.0,69398.0,0.56669603]
[1770479398519,0.55978029,69415.0,69398.0,0.56669603]
[1770479399125,0.55978029,69415.0,69390.0,0.56669603]
[1770479399521,0.55978029,69414.0,69390.0,0.56669603]
[1770479399820,0.55978029,69414.0,69392.0,0.56669603]
[1770479400018,0.42758271,69415.0,69394.0,0.56669603]
[1770479400217,0.42758271,69416.0,69394.0,0.56669603]
[1770479400414,0.42758271,69416.0,69396.0,0.56669603]
[1770479400612,0.42758271,69420.0,69396.0,0.56669603]
[1770479401021,0.42758271,69419.0,69396.0,0.56669603]
[1770479401225,0.987363,69419.0,69396.0,0.56669603]
[1770479401519,0.987363,69418.0,69396.0,0.56669603]
[1770479402527,0.55978029,69417.0,69396.0,0.56669603]
[1770479402823,0.55978029,69417.0,69389.0,0.56669603]
[1770479403027,0.55978029,69417.0,69382.0,0.28445519]
[1770479403028,0.55978029,69411.0,69382.0,0.85115122]
[1770479403728,0.55978029,69411.0,69382.0,0.56669603]
[1770479403925,0.55978029,69408.0,69382.0,0.56669603]
[1770479404319,0.55978029,69407.0,69382.0,0.56669603]
[1770479405224,0.55978029,69406.0,69382.0,0.56669603]
[1770479405725,0.55978029,69406.0,69382.0,0.58112303]
[1770479406319,0.55978029,69406.0,69382.0,0.56669603]
[1770479406515,0.55978029,69406.0,69368.0,0.005]
[1770479406817,0.55978029,69406.0,69366.0,0.54717231]
[1770479407013,0.55978029,69406.0,69345.0,0.00013505]
[1770479407014,0.55978029,69406.0,69358.0,0.54717231]
[1770479407829,0.54368201,69389.0,69345.0,0.00013505]
[1770479408023,0.54368201,69389.0,69344.0,0.44730736]
[1770479408924,0.54368201,69389.0,69329.0,0.0002]
[1770479408925,0.54368201,69389.0,69337.0,0.54717231]
[1770479409126,0.1456005,69390.0,69335.0,0.28504831]
[1770479409127,0.54368201,69387.0,69335.0,0.28504831]
[1770479409424,0.54368201,69349.0,69308.0,0.0002]
[1770479409630,0.54368201,69347.0,69308.0,0.54737231]
[1770479409815,0.54368201,69343.0,69308.0,0.54717231]
[1770479410125,0.1456005,69350.0,69298.0,0.54717231]
[1770479410126,0.54368201,69334.0,69298.0,0.54717231]
[1770479410428,0.014439,69322.0,69298.0,0.54717231]
[1770479410726,0.014439,69322.0,69263.0,0.11297178]
[1770479410727,0.54368201,69292.0,69240.0,0.11297178]
[1770479411027,0.1456005,69284.0,69249.0,0.52842114]
[1770479411233,0.55695366,69293.0,69251.0,0.52842114]
[1770479411525,0.00017402,69292.0,69262.0,0.52842114]
[1770479411718,0.1456005,69320.0,69262.0,0.52842114]
[1770479411719,0.00013302,69291.0,69262.0,0.52842114]
[1770479411921,0.00011467,69290.0,69262.0,0.52842114]
[1770479412320,0.00011467,69290.0,69264.0,0.52842114]
[1770479412616,0.55695366,69295.0,69264.0,0.52842114]
[1770479412823,0.014448,69280.0,69255.0,0.0002]
[1770479413028,0.014448,69277.0,69255.0,0.0002]
[1770479413324,0.014454,69252.0,69228.0,0.52842114]
[1770479413530,0.55695366,69254.0,69228.0,0.52842114]
[1770479413720,0.55695366,69254.0,69238.0,0.0002]
[1770479413924,0.55695366,69254.0,69228.0,0.52842114]
[1770479414226,0.00015958,69253.0,69222.0,0.0002]
[1770479414424,0.2178525,69270.0,69222.0,0.0002]
[1770479414425,0.014452,69262.0,69224.0,0.52842114]
[1770479414722,0.1456005,69270.0,69224.0,0.52842114]
[1770479414723,0.57140666,69255.0,69224.0,0.52842114]
[1770479414924,0.55695366,69255.0,69224.0,0.52842114]
[1770479415225,0.014453,69254.0,69224.0,0.52842114]
[1770479415418,0.014454,69249.0,69224.0,0.52842114]
[1770479415624,0.55695366,69254.0,69224.0,0.52842114]
[1770479416031,0.55695366,69252.0,69224.0,0.52842114]
[1770479416322,0.014452,69260.0,69224.0,0.52842114]
[1770479416524,0.55695366,69261.0,69224.0,0.54288014]
[1770479416731,0.014451,69266.0,69231.0,0.52842114]
[1770479416924,0.014452,69261.0,69231.0,0.52842114]
[1770479417126,0.014452,69261.0,69238.0,0.0002]
[1770479417542,0.55695366,69259.0,69238.0,0.0002]
[1770479418038,0.014452,69258.0,69238.0,0.0002]
[1770479418329,0.014452,69258.0,69231.0,0.52842114]
[1770479418529,0.014452,69258.0,69223.0,0.01466]
[1770479418530,0.014454,69249.0,69223.0,0.0002]
[1770479419125,0.57140666,69254.0,69223.0,0.0002]
[1770479419438,0.014454,69251.0,69220.0,0.52842114]
[1770479419738,0.00013947,69250.0,69220.0,0.52842114]
[1770479419933,0.00012898,69249.0,69220.0,0.52842114]
[1770479420136,0.57140766,69251.0,69220.0,0.52842114]
[1770479420437,0.57140766,69250.0,69220.0,0.52862114]
[1770479420932,0.014447,69284.0,69222.0,0.52842114]
[1770479420933,0.55695366,69271.0,69222.0,0.52842114]
[1770479421245,0.55695366,69271.0,69220.0,0.0002]
[1770479421246,0.014452,69261.0,69229.0,0.52842114]
[1770479421629,0.55695366,69304.0,69258.0,0.014452]
[1770479421832,0.55695366,69291.0,69259.0,0.52842114]
[1770479422136,0.072212,69308.0,69259.0,0.52842114]
[1770479422137,0.014447,69286.0,69259.0,0.52842114]
[1770479422335,0.014447,69284.0,69259.0,0.52842114]
[1770479422540,0.57140066,69284.0,69259.0,0.52842114]
[1770479422732,0.072212,69308.0,69259.0,0.52842114]
[1770479422733,0.014446,69288.0,69259.0,0.52842114]
[1770479423333,7.007e-05,69287.0,69270.0,0.54287114]
[1770479423633,7.007e-05,69287.0,69254.0,0.0002]
[1770479423634,0.55695366,69298.0,69263.0,0.52842114]
[1770479423834,0.014443,69302.0,69269.0,0.54307114]
[1770479424238,0.014443,69302.0,69274.0,0.52842114]
[1770479424435,0.57139666,69302.0,69283.0,0.0002]
[1770479424637,0.014439,69321.0,69269.0,0.0002]
[1770479424638,0.57139766,69299.0,69269.0,0.0002]
[1770479424937,0.55695366,69299.0,69267.0,0.52842114]
[1770479425241,0.014439,69321.0,69267.0,0.52842114]
[1770479425242,0.57139866,69295.0,69267.0,0.52842114]
[1770479426133,0.57139866,69295.0,69261.0,0.014452]
[1770479426536,0.57139866,69295.0,69266.0,0.52842114]
[1770479426836,0.57139866,69295.0,69267.0,0.54287214]
[1770479427139,0.57139866,69295.0,69267.0,0.52842114]
[1770479427341,0.014445,69292.0,69267.0,0.52842114]
[1770479427530,0.57140166,69280.0,69250.0,0.014454]
[1770479427839,0.57140166,69279.0,69249.0,0.54287514]
[1770479428136,0.55695366,69279.0,69258.0,0.0002]
[1770479428641,0.014447,69283.0,69258.0,0.0002]
[1770479428841,0.014448,69280.0,69258.0,0.0002]
[1770479429042,0.55695366,69284.0,69249.0,0.52842114]
[1770479429240,0.55695366,69284.0,69251.0,0.52842114]
[1770479429438,0.014447,69283.0,69255.0,0.014453]
[1770479429741,0.014448,69280.0,69251.0,0.54287514]
[1770479430129,0.014448,69282.0,69254.0,0.54287414]
[1770479430334,0.57140166,69282.0,69254.0,0.54287414]
[1770479430536,0.55695366,69282.0,69254.0,0.54287414]
[1770479431242,0.014448,69281.0,69254.0,0.52842114]
[1770479431741,0.014448,69278.0,69254.0,0.52842114]
[1770479432336,0.57140166,69282.0,69254.0,0.52842114]
[1770479432747,0.57140166,69282.0,69255.0,0.54287414]
[1770479433345,0.55695366,69278.0,69211.0,0.52842114]